fUSD/lending_fUSD_20240406
["ID","MTS","AMOUNT","RATE_DAILY","PERIOD"]
[321671360,1712367047654,-150.0,0.00024791,2]
[321671361,1712367047663,-150.0,0.00024792,2]
[321671362,1712367047673,-150.0,0.00024793,2]
[321671363,1712367047684,-150.0,0.00024802,2]
[321671364,1712367047693,-150.0,0.00024803,2]
[321671365,1712367047703,-150.0,0.00024811,2]
[321671366,1712367047712,-150.0,0.00024844,2]
[321671367,1712367047722,-150.0,0.00024857,2]
[321671368,1712367047731,-150.0,0.00024861,2]
[321671369,1712367047741,-150.0,0.00024864,2]
[321671370,1712367047750,-150.0,0.00024864,2]
[321671371,1712367047760,-150.0,0.00024867,2]
[321671372,1712367047769,-150.0,0.00024868,2]
[321671373,1712367047779,-150.0,0.00024871,2]
[321671374,1712367047789,-150.0,0.00024876,2]
[321671375,1712367047798,-150.0,0.00024884,2]
[321671376,1712367047808,-150.0,0.00024885,2]
[321671377,1712367047818,-150.0,0.00024888,2]
[321671378,1712367047828,-150.0,0.0002489,2]
[321671379,1712367047837,-150.0,0.00024897,2]
[321671380,1712367047847,-150.0,0.00024898,2]
[321671381,1712367047858,-59.81668921,0.00024912,2]
[321671382,1712367047872,-150.0,0.00024912,2]
[321671383,1712367047882,-150.0,0.00024912,2]
[321671384,1712367047892,-150.0,0.00024915,2]
[321671385,1712367047905,-150.0,0.00024918,2]
[321671386,1712367047916,-150.0,0.0002492,2]
[321671387,1712367047926,-150.0,0.00024929,2]
[321671388,1712367047936,-150.0,0.00024941,2]
[321671389,1712367047947,-150.0,0.00024949,2]
[321671390,1712367047958,-150.0,0.00024957,2]
[321671391,1712367047970,-150.0,0.00024959,2]
[321671392,1712367047981,-150.0,0.00024964,2]
[321671393,1712367047992,-150.0,0.00024967,2]
[321671394,1712367048003,-150.0,0.00024969,2]
[321671395,1712367048013,-150.0,0.0002497,2]
[321671396,1712367048024,-150.0,0.00024971,2]
[321671397,1712367048034,-150.0,0.00024978,2]
[321671398,1712367048045,-150.0,0.00024981,2]
[321671399,1712367048055,-150.0,0.00024983,2]
[321671400,1712367048064,-150.0,0.00024988,2]
[321671401,1712367048074,-150.0,0.00024991,2]
[321671402,1712367048084,-150.0,0.00024992,2]
[321671403,1712367048093,-150.0,0.00024995,2]
[321671404,1712367048103,-150.0,0.00024998,2]
[321671405,1712367048113,-150.0,0.00024998,2]
[321671406,1712367048123,-150.0,0.00024999,2]
[321671407,1712367048132,-5709.80256903,0.00025,2]
[321671408,1712367048169,-179.37444382,0.00023,2]
[321671409,1712367048178,-600.13410331,0.000249,2]
[321671410,1712367048187,-3124.95886359,0.00025,2]
[321671411,1712367048215,-150.0,0.00024759,2]
[321671412,1712367048230,-308.24682656,0.00025,2]
[321671413,1712367048430,-563.6184,0.000229,2]
[321671414,1712367048442,-129.25923614,0.00024741,2]
[321671415,1712367048457,-20.74076386,0.00024741,2]
[321671416,1712367048467,-150.0,0.00024753,2]
[321671417,1712367048478,-196.84175438,0.00024765,2]
[321671418,1712367048489,-150.0,0.00024828,2]
[321671419,1712367048499,-49.18908491,0.00024849,2]
[321671420,1712367048517,-100.81091509,0.00024849,2]
[321671421,1712367048527,-150.0,0.00024856,2]
[321671422,1712367048537,-150.0,0.00024902,2]
[321671423,1712367048547,-150.0,0.00024919,2]
[321671424,1712367048557,-1244.55650412,0.00024995,2]
[321671425,1712367467146,10051.91700959,0.00039747,120]
[321671507,1712368075321,1483.24132365,0.00022496,5]
[321671508,1712368206461,3131.2561367,0.00039747,120]
[321671515,1712368231398,-1207.64325977,0.00021669,2]
[321671528,1712368231569,-1350.87424023,0.00021669,2]
[321671529,1712368231580,-241.37,0.00021769,2]
[321671530,1712368231590,-1485.2219,0.000229,2]
[321671531,1712368231599,-165.0820197,0.00022921,2]
[321671532,1712368231609,-150.0,0.00022998,2]
[321671533,1712368231622,-150.0,0.00022998,2]
[321671534,1712368231631,-13811.52430301,0.00022999,2]
[321671535,1712368231640,-1042.37474455,0.00023,2]
[321671536,1712368231649,-11362.80451543,0.00023,2]
[321671546,1712368231878,-2401.13681457,0.00023,2]
[321671548,1712368231890,-2672.05989256,0.00023,2]
[321671552,1712368231918,-24711.94011362,0.00023,2]
[321671634,1712368237459,-651.8383,0.00023,2]
[321671635,1712368237472,-3329.4699208,0.00023,2]
[321671636,1712368237579,-1220.20775906,0.00023,2]
[321671637,1712368237592,-406.46916604,0.00023,2]
[321671638,1712368237604,-428.61941707,0.00023,2]
[321671639,1712368237615,-315.19030927,0.00023,2]
[321671640,1712368237684,-692.79472096,0.00023,2]
[321671641,1712368237697,-162721.00715562,0.00023,2]
[321671642,1712368237707,-186.44764638,0.00023481,2]
[321671643,1712368237717,-165.08201968,0.00023581,2]
[321671644,1712368237728,-918.36,0.00023687,2]
[321671645,1712368237738,-301.88,0.00023687,2]
[321671646,1712368237748,-1000.0,0.00023865,2]
[321671647,1712368237758,-1909.38986502,0.0002399,2]
[321671648,1712368237768,-241.37,0.00024033,2]
[321671649,1712368237779,-150.0,0.00024082,2]
[321671650,1712368237789,-465.16600372,0.0002412,3]
[321671651,1712368237799,-144145.4545,0.00024121,2]
[321671652,1712368237809,-165.08201968,0.0002424,2]
[321671653,1712368237820,-105659.78453984,0.0002434,7]
[321671654,1712368237832,-99089.93255803,0.0002434,7]
[321671655,1712368237843,-479.178,0.00024457,2]
[321671656,1712368237852,-155.0,0.00024599,2]
[321671657,1712368237862,-1000.0,0.000246,2]
[321671658,1712368237872,-535.16172089,0.00024657,2]
[321671659,1712368237881,-194.41610049,0.00024657,2]
[321671660,1712368237891,-405.35063254,0.00024657,2]
[321671661,1712368237902,-541.9365969,0.00024657,2]
[321671662,1712368237912,-314.52099337,0.00024657,2]
[321671663,1712368237925,-193.34197463,0.00024657,2]
[321671664,1712368237935,-230.93030626,0.00024657,2]
[321671665,1712368237945,-500.0,0.00024657,2]
[321671666,1712368237954,-204.33109892,0.00024657,2]
[321671667,1712368237964,-500.0,0.00024657,2]
[321671669,1712368237973,-500.0,0.00024657,2]
[321671670,1712368237982,-184.4139341,0.00024657,2]
[321671671,1712368237992,-500.0,0.00024657,2]
[321671672,1712368238002,-251.72628235,0.00024657,2]
[321671673,1712368238012,-500.0,0.00024657,2]
[321671674,1712368238020,-500.0,0.00024657,2]
[321671675,1712368238030,-500.0,0.00024657,2]
[321671676,1712368238041,-514.83558947,0.00024657,2]
[321671677,1712368238050,-170.22284815,0.00024657,2]
[321671678,1712368238060,-500.0,0.00024657,2]
[321671679,1712368238069,-500.0,0.00024657,2]
[321671680,1712368238080,-169.48805877,0.00024657,2]
[321671681,1712368238090,-500.0,0.00024657,2]
[321671682,1712368238099,-500.0,0.00024657,2]
[321671683,1712368238108,-211.82718051,0.00024657,2]
[321671684,1712368238118,-1090.12,0.00024657,2]
[321671685,1712368238127,-278.70406176,0.00024657,2]
[321671686,1712368238137,-432.16120926,0.00024657,2]
[321671687,1712368238146,-500.0,0.00024657,2]
[321671688,1712368238156,-500.0,0.00024657,2]
[321671689,1712368238166,-500.0,0.00024657,2]
[321671690,1712368238175,-183.05592655,0.00024657,2]
[321671691,1712368238185,-500.0,0.00024657,2]
[321671692,1712368238194,-500.0,0.00024657,2]
[321671693,1712368238204,-500.0,0.00024657,2]
[321671694,1712368238218,-500.0,0.00024657,2]
[321671695,1712368238227,-500.0,0.00024657,2]
[321671696,1712368238237,-237.43644089,0.00024657,2]
[321671697,1712368238249,-213.7638337,0.00024699,2]
[321671698,1712368238260,-500.0,0.00024699,2]
[321671699,1712368238269,-500.0,0.00024699,2]
[321671700,1712368238279,-164.89614715,0.0002475,2]
[321671701,1712368238292,-167.8428,0.00024796,2]
[321671702,1712368238302,-838.034984,0.000248,2]
[321671703,1712368238312,-500.0,0.000248,2]
[321671704,1712368238321,-970.0,0.000248,2]
[321671705,1712368238333,-1000.0,0.000248,2]
[321671706,1712368238343,-1018.29,0.000248,2]
[321671707,1712368238353,-1625.475,0.00024897,2]
[321671708,1712368238362,-207.0,0.00024897,2]
[321671709,1712368238372,-214.0,0.00024897,2]
[321671710,1712368238381,-551.11610019,0.00024899,2]
[321671711,1712368238391,-382.67778729,0.00024899,2]
[321671712,1712368238400,-485.34631172,0.00024899,2]
[321671713,1712368238410,-643.5000335,0.00024899,2]
[321671714,1712368238420,-585.27972383,0.00024899,2]
[321671715,1712368238428,-462.7308059,0.00024899,2]
[321671716,1712368238438,-500.0,0.00024899,2]
[321671717,1712368238447,-500.0,0.00024899,2]
[321671718,1712368238457,-500.0,0.00024899,2]
[321671719,1712368238466,-156.28965694,0.00024899,2]
[321671720,1712368238475,-500.0,0.00024899,2]
[321671721,1712368238485,-211.00350321,0.00024899,2]
[321671722,1712368238496,-500.0,0.00024899,2]
[321671723,1712368238505,-264.52724052,0.00024899,2]
[321671724,1712368238514,-500.0,0.00024899,2]
[321671725,1712368238524,-500.0,0.00024899,2]
[321671726,1712368238534,-381.58456872,0.00024899,2]
[321671727,1712368238544,-352.65380803,0.00024899,2]
[321671728,1712368238554,-500.0,0.00024899,2]
[321671729,1712368238564,-165.1193056,0.00024899,2]
[321671730,1712368238575,-401.38884185,0.00024899,2]
[321671731,1712368238586,-500.0,0.00024899,2]
[321671732,1712368238597,-500.0,0.00024899,2]
[321671733,1712368238606,-500.0,0.00024899,2]
[321671734,1712368238616,-500.0,0.00024899,2]
[321671735,1712368238627,-500.0,0.00024899,2]
[321671736,1712368238637,-500.0,0.00024899,2]
[321671737,1712368238647,-1090.12,0.00024899,2]
[321671738,1712368238656,-500.0,0.00024899,2]
[321671739,1712368238666,-500.0,0.00024899,2]
[321671740,1712368238676,-500.0,0.00024899,2]
[321671741,1712368238686,-500.0,0.00024899,2]
[321671742,1712368238695,-500.0,0.00024899,2]
[321671743,1712368238705,-500.0,0.00024899,2]
[321671744,1712368238715,-500.0,0.00024899,2]
[321671745,1712368238725,-7500.0,0.000249,2]
[321671746,1712368238737,-738.96957685,0.000249,2]
[321671747,1712368238746,-500.0,0.000249,2]
[321671748,1712368238757,-100000.0,0.000249,2]
[321671749,1712368238767,-1226.0,0.000249,2]
[321671750,1712368238777,-280.65233254,0.000249,2]
[321671751,1712368238787,-280.65233254,0.000249,2]
[321671752,1712368238797,-280.65233254,0.000249,2]
[321671753,1712368238807,-280.65233254,0.000249,2]
[321671754,1712368238817,-280.65233254,0.000249,2]
[321671755,1712368238829,-280.65233254,0.000249,2]
[321671756,1712368238838,-280.65233254,0.000249,2]
[321671757,1712368238849,-280.65233254,0.000249,2]
[321671758,1712368238859,-280.65233254,0.000249,2]
[321671759,1712368238869,-280.65233254,0.000249,2]
[321671760,1712368238879,-280.65233254,0.000249,2]
[321671761,1712368238890,-280.65233254,0.000249,2]
[321671762,1712368238900,-280.65233254,0.000249,2]
[321671763,1712368238910,-280.65233254,0.000249,2]
[321671764,1712368238921,-280.65233254,0.000249,2]
[321671765,1712368238932,-280.65233254,0.000249,2]
[321671766,1712368238942,-165.08201968,0.000249,2]
[321671767,1712368238951,-333.040611,0.00024906,2]
[321671768,1712368238961,-333.040611,0.00024906,2]
[321671769,1712368238970,-333.040611,0.00024906,2]
[321671770,1712368238980,-333.040611,0.00024906,2]
[321671771,1712368238990,-333.040611,0.00024906,2]
[321671772,1712368238999,-333.040611,0.00024906,2]
[321671773,1712368239009,-333.040611,0.00024906,2]
[321671774,1712368239018,-333.040611,0.00024906,2]
[321671775,1712368239027,-333.040611,0.00024906,2]
[321671776,1712368239037,-333.040611,0.00024906,2]
[321671777,1712368239046,-501.0,0.00024973,2]
[321671778,1712368239056,-184.72,0.0002498,2]
[321671779,1712368239066,-301.88070953,0.00024985,2]
[321671780,1712368239076,-6521.18838236,0.00024995,2]
[321671781,1712368239085,-341.89657089,0.00024995,2]
[321671782,1712368239095,-5346.24310499,0.00024995,2]
[321671783,1712368239105,-304.60140284,0.00024996,2]
[321671784,1712368239114,-500.0,0.00024996,2]
[321671785,1712368239125,-500.0,0.00024996,2]
[321671786,1712368239134,-334.07188547,0.00024996,2]
[321671787,1712368239145,-500.0,0.00024996,2]
[321671788,1712368239154,-538.89686938,0.00024996,2]
[321671789,1712368239164,-500.0,0.00024996,2]
[321671790,1712368239174,-500.0,0.00024996,2]
[321671791,1712368239183,-500.0,0.00024996,2]
[321671792,1712368239192,-500.0,0.00024996,2]
[321671793,1712368239202,-500.0,0.00024996,2]
[321671794,1712368239213,-500.0,0.00024996,2]
[321671795,1712368239223,-500.0,0.00024996,2]
[321671796,1712368239232,-500.0,0.00024996,2]
[321671797,1712368239242,-500.0,0.00024996,2]
[321671798,1712368239252,-500.0,0.00024996,2]
[321671799,1712368239263,-1090.12,0.00024996,2]
[321671801,1712368239274,-500.0,0.00024996,2]
[321671803,1712368239283,-500.0,0.00024996,2]
[321671805,1712368239294,-500.0,0.00024996,2]
[321671807,1712368239304,-500.0,0.00024996,2]
[321671809,1712368239313,-500.0,0.00024996,2]
[321671811,1712368239322,-500.0,0.00024996,2]
[321671813,1712368239334,-500.0,0.00024996,2]
[321671815,1712368239343,-500.0,0.00024996,2]
[321671817,1712368239352,-315.91126418,0.00024996,2]
[321671819,1712368239362,-362.44793609,0.00024997,2]
[321671821,1712368239371,-153898.965394,0.00024997,2]
[321671823,1712368239381,-35164.0651708,0.00024997,2]
[321671825,1712368239390,-154380.0036568,0.00024997,2]
[321671827,1712368239400,-4268.001404,0.00024997,2]
[321671829,1712368239409,-44638.362915,0.00024997,2]
[321671831,1712368239419,-2863.4980697,0.00024997,2]
[321671832,1712368239429,-1015.8937888,0.00024997,2]
[321671835,1712368239438,-3891.9776879,0.00024997,2]
[321671837,1712368239448,-6196.7214083,0.00024997,2]
[321671840,1712368239457,-246.77748113,0.00024998,2]
[321671843,1712368239466,-222.61196904,0.00024998,2]
[321671847,1712368239476,-309.3557049,0.00024998,2]
[321671851,1712368239486,-295.77647718,0.00024998,2]
[321671854,1712368239495,-452.50877195,0.00024998,2]
[321671858,1712368239504,-1282.12855144,0.00024998,2]
[321671862,1712368239514,-225.21238411,0.00024998,2]
[321671866,1712368239523,-157.71282385,0.00024998,2]
[321671869,1712368239533,-266.01423954,0.00024998,2]
[321671871,1712368239542,-904.49730073,0.00024998,2]
[321671874,1712368239551,-260.08259237,0.00024998,2]
[321671877,1712368239560,-155.49898802,0.00024998,2]
[321671879,1712368239570,-150.01,0.00024999,2]
[321671882,1712368239581,-5322.14828129,0.00024999,2]
[321671885,1712368239590,-500.0,0.00024999,2]
[321671888,1712368239599,-500.0,0.00024999,2]
[321671889,1712368239610,-500.0,0.00024999,2]
[321671891,1712368239619,-500.0,0.00024999,2]
[321671893,1712368239628,-232.78607234,0.00024999,2]
[321671895,1712368239637,-500.0,0.00024999,2]
[321671913,1712368239844,-500.0,0.00024999,2]
[321671915,1712368239854,-500.0,0.00024999,2]
[321671917,1712368239864,-500.0,0.00024999,2]
[321671918,1712368239874,-500.0,0.00024999,2]
[321671919,1712368239884,-500.0,0.00024999,2]
[321671920,1712368239893,-500.0,0.00024999,2]
[321671921,1712368239902,-500.0,0.00024999,2]
[321671922,1712368239912,-500.0,0.00024999,2]
[321671923,1712368239921,-500.0,0.00024999,2]
[321671925,1712368239930,-507.2989687,0.00024999,2]
[321671927,1712368239940,-266.50880987,0.00024999,2]
[321671929,1712368239949,-500.0,0.00024999,2]
[321671930,1712368239958,-500.0,0.00024999,2]
[321671931,1712368239967,-553.55549183,0.00024999,2]
[321671932,1712368239976,-500.0,0.00024999,2]
[321671933,1712368239986,-500.0,0.00024999,2]
[321671934,1712368239996,-500.0,0.00024999,2]
[321671935,1712368240005,-500.0,0.00024999,2]
[321671936,1712368240015,-500.0,0.00024999,2]
[321671937,1712368240024,-500.0,0.00024999,2]
[321671938,1712368240034,-500.0,0.00024999,2]
[321671939,1712368240046,-500.0,0.00024999,2]
[321671940,1712368240056,-500.0,0.00024999,2]
[321671941,1712368240066,-500.0,0.00024999,2]
[321671942,1712368240075,-500.0,0.00024999,2]
[321671943,1712368240084,-500.0,0.00024999,2]
[321671944,1712368240094,-500.0,0.00024999,2]
[321671945,1712368240103,-500.0,0.00024999,2]
[321671946,1712368240112,-500.0,0.00024999,2]
[321671947,1712368240122,-500.0,0.00024999,2]
[321671948,1712368240131,-500.0,0.00024999,2]
[321671949,1712368240140,-500.0,0.00024999,2]
[321671950,1712368240151,-500.0,0.00024999,2]
[321671951,1712368240161,-500.0,0.00024999,2]
[321671952,1712368240170,-500.0,0.00024999,2]
[321671953,1712368240179,-299.42001878,0.00024999,2]
[321671954,1712368240189,-500.0,0.00024999,2]
[321671955,1712368240198,-500.0,0.00024999,2]
[321671956,1712368240208,-238.86692041,0.00024999,2]
[321671957,1712368240219,-201.86616059,0.00024999,2]
[321671958,1712368240234,-500.0,0.00024999,2]
[321671959,1712368240243,-500.0,0.00024999,2]
[321671960,1712368240253,-500.0,0.00024999,2]
[321671961,1712368240262,-500.0,0.00024999,2]
[321671962,1712368240272,-500.0,0.00024999,2]
[321671963,1712368240281,-500.0,0.00024999,2]
[321671964,1712368240290,-500.0,0.00024999,2]
[321671965,1712368240300,-500.0,0.00024999,2]
[321671966,1712368240310,-500.0,0.00024999,2]
[321671967,1712368240319,-500.0,0.00024999,2]
[321671968,1712368240329,-500.0,0.00024999,2]
[321671969,1712368240338,-500.0,0.00024999,2]
[321671970,1712368240347,-500.0,0.00024999,2]
[321671971,1712368240356,-500.0,0.00024999,2]
[321671972,1712368240366,-500.0,0.00024999,2]
[321671973,1712368240375,-618.02158185,0.00024999,2]
[321671974,1712368240385,-500.0,0.00024999,2]
[321671975,1712368240395,-500.0,0.00024999,2]
[321671976,1712368240405,-500.0,0.00024999,2]
[321671977,1712368240414,-500.0,0.00024999,2]
[321671978,1712368240423,-500.0,0.00024999,2]
[321671979,1712368240432,-500.0,0.00024999,2]
[321671980,1712368240442,-500.0,0.00024999,2]
[321671981,1712368240454,-436.97765785,0.00024999,2]
[321671982,1712368240463,-363.85362903,0.00024999,2]
[321671983,1712368240473,-500.0,0.00024999,2]
[321671984,1712368240482,-500.0,0.00024999,2]
[321671985,1712368240492,-500.0,0.00024999,2]
[321671986,1712368240502,-500.0,0.00024999,2]
[321671987,1712368240511,-500.0,0.00024999,2]
[321671988,1712368240520,-500.0,0.00024999,2]
[321671989,1712368240529,-500.0,0.00024999,2]
[321671990,1712368240539,-500.0,0.00024999,2]
[321671991,1712368240548,-505.74504946,0.00024999,2]
[321671992,1712368240557,-500.0,0.00024999,2]
[321671993,1712368240567,-336.45721855,0.00024999,2]
[321671994,1712368240577,-1090.12,0.00024999,2]
[321671995,1712368240587,-1090.12,0.00024999,2]
[321671996,1712368240596,-1090.12,0.00024999,2]
[321671997,1712368240606,-1090.12,0.00024999,2]
[321671998,1712368240615,-1090.12,0.00024999,2]
[321671999,1712368240624,-1090.12,0.00024999,2]
[321672000,1712368240634,-1090.12,0.00024999,2]
[321672001,1712368240642,-1090.12,0.00024999,2]
[321672002,1712368240652,-1090.12,0.00024999,2]
[321672003,1712368240661,-1090.12,0.00024999,2]
[321672004,1712368240671,-1090.12,0.00024999,2]
[321672005,1712368240680,-1090.12,0.00024999,2]
[321672006,1712368240689,-1090.12,0.00024999,2]
[321672007,1712368240701,-1090.12,0.00024999,2]
[321672008,1712368240710,-1090.12,0.00024999,2]
[321672009,1712368240720,-1090.12,0.00024999,2]
[321672010,1712368240730,-1090.12,0.00024999,2]
[321672011,1712368240740,-1090.12,0.00024999,2]
[321672012,1712368240750,-1090.12,0.00024999,2]
[321672013,1712368240759,-1090.12,0.00024999,2]
[321672014,1712368240769,-1090.27106055,0.00024999,2]
[321672015,1712368240778,-199.6106364,0.00024999,2]
[321672016,1712368240787,-500.0,0.00024999,2]
[321672017,1712368240796,-319.86027235,0.00024999,2]
[321672018,1712368240805,-500.0,0.00024999,2]
[321672019,1712368240814,-239.24358766,0.00024999,2]
[321672020,1712368240824,-500.0,0.00024999,2]
[321672021,1712368240834,-500.0,0.00024999,2]
[321672022,1712368240844,-500.0,0.00024999,2]
[321672023,1712368240853,-500.0,0.00024999,2]
[321672024,1712368240862,-500.0,0.00024999,2]
[321672025,1712368240871,-500.0,0.00024999,2]
[321672026,1712368240881,-500.0,0.00024999,2]
[321672027,1712368240890,-500.0,0.00024999,2]
[321672028,1712368240899,-500.0,0.00024999,2]
[321672029,1712368240908,-500.0,0.00024999,2]
[321672030,1712368240917,-500.0,0.00024999,2]
[321672031,1712368240926,-500.0,0.00024999,2]
[321672032,1712368240936,-500.0,0.00024999,2]
[321672033,1712368240945,-500.0,0.00024999,2]
[321672034,1712368240954,-500.0,0.00024999,2]
[321672035,1712368240963,-500.0,0.00024999,2]
[321672036,1712368240972,-169.40618809,0.00024999,2]
[321672037,1712368240981,-500.0,0.00024999,2]
[321672038,1712368240990,-340.69480199,0.00024999,2]
[321672039,1712368241000,-272.57040625,0.00024999,2]
[321672040,1712368241009,-500.0,0.00024999,2]
[321672041,1712368241018,-500.0,0.00024999,2]
[321672042,1712368241028,-500.0,0.00024999,2]
[321672043,1712368241039,-500.0,0.00024999,2]
[321672044,1712368241050,-500.0,0.00024999,2]
[321672045,1712368241060,-500.0,0.00024999,2]
[321672046,1712368241070,-500.0,0.00024999,2]
[321672047,1712368241081,-500.0,0.00024999,2]
[321672048,1712368241090,-500.0,0.00024999,2]
[321672049,1712368241100,-375.43983155,0.00024999,2]
[321672050,1712368241110,-446287.47342591,0.00025,3]
[321672051,1712368241119,-1195671.89467053,0.00025,2]
[321672052,1712368241136,-1710018.85341682,0.00025,2]
[321672053,1712368241148,-15187.99885899,0.00025,2]
[321672054,1712368241175,-11070.940885,0.00025,2]
[321672055,1712368241188,-1425.94447234,0.00025,2]
[321672056,1712368241203,-484.4675643,0.00025,2]
[321672057,1712368241333,-1153.5,0.00025,2]
[321672058,1712368241358,-412.442123,0.00025,2]
[321672059,1712368241370,-760.90993712,0.00025,2]
[321672061,1712368242697,-5404.60810182,0.00025,2]
[321672074,1712368288223,198.67506714,0.00039748,30]
[321672075,1712368308244,1000.0,0.00039748,120]
[321672076,1712368410151,174.37795125,0.00039748,120]
[321672077,1712368412630,245.24147977,0.00039748,120]
[321672078,1712368432333,522.38895381,0.00039748,120]
[321672080,1712368434098,5767.10746489,0.00039748,120]
[321672082,1712368476991,182.28463639,0.00039748,30]
[321672083,1712368551978,1450.0,0.00021,3]
[321672084,1712368553056,1500.0,0.00023,3]
[321672089,1712369058954,3184.07553413,0.00039727,30]
[321672116,1712369431874,-535.57960679,0.00022049,2]
[321672117,1712369431929,-134.67317948,0.00022049,2]
[321672118,1712369431938,-272.19,0.0002205,2]
[321672119,1712369431948,-210.6342942,0.00022496,2]
[321672120,1712369431957,-119.41823452,0.00023901,2]
[321672121,1712369431969,-619.38,0.00023901,2]
[321672122,1712369431981,-265.07176548,0.00023901,2]
[321672124,1712369431990,-100.397257,0.0002391,2]
[321672125,1712369432004,-323.732743,0.0002391,2]
[321672126,1712369432014,-240.62,0.00023928,2]
[321672127,1712369432023,-1000.0,0.00024014,2]
[321672128,1712369432034,-272.19,0.00024314,2]
[321672129,1712369432045,-155.0,0.00024556,2]
[321672130,1712369432058,-348.82,0.00024557,2]
[321672131,1712369432067,-499.99,0.00024557,2]
[321672132,1712369432078,-0.45899536,0.00024657,2]
[321672141,1712369437688,-516.62305987,0.00024657,2]
[321672142,1712369437697,-516.96243831,0.00024657,2]
[321672143,1712369437708,-516.63973225,0.00024657,2]
[321672144,1712369437717,-512.21554757,0.00024657,2]
[321672145,1712369437726,-515.79915151,0.00024657,2]
[321672146,1712369437736,-565.48710487,0.00024657,2]
[321672147,1712369437745,-247.16046564,0.00024657,2]
[321672148,1712369437911,-277.0115539,0.00024657,2]
[321672149,1712369437921,-545.53164456,0.00024657,2]
[321672150,1712369437932,-511.66952431,0.00024657,2]
[321672151,1712369437943,-503.70909451,0.00024657,2]
[321672152,1712369437952,-503.75800665,0.00024657,2]
[321672153,1712369437961,-504.79447312,0.00024657,2]
[321672155,1712369437970,-500.0,0.00024657,2]
[321672156,1712369437980,-500.0,0.00024657,2]
[321672157,1712369437990,-3044.49489778,0.00024746,2]
[321672158,1712369438000,-164.89614716,0.0002475,2]
[321672159,1712369438010,-171.78036032,0.00024799,2]
[321672160,1712369438019,-2222.79220743,0.000248,2]
[321672161,1712369438030,-500.0,0.000248,2]
[321672162,1712369438039,-466.0,0.000248,2]
[321672163,1712369438051,-333.040611,0.00024806,2]
[321672164,1712369438061,-333.040611,0.00024806,2]
[321672165,1712369438071,-333.040611,0.00024806,2]
[321672166,1712369438082,-333.040611,0.00024806,2]
[321672167,1712369438092,-333.040611,0.00024806,2]
[321672168,1712369438101,-333.040611,0.00024806,2]
[321672169,1712369438111,-333.040611,0.00024806,2]
[321672170,1712369438120,-333.040611,0.00024806,2]
[321672171,1712369438130,-333.040611,0.00024806,2]
[321672172,1712369438141,-333.040611,0.00024806,2]
[321672173,1712369438150,-150.0,0.00024843,2]
[321672174,1712369438160,-171.78036031,0.0002485,2]
[321672175,1712369438171,-319.2317,0.00024897,2]
[321672176,1712369438180,-100000.0,0.00024897,2]
[321672177,1712369438191,-577.4636,0.00024897,2]
[321672178,1712369438201,-167.863,0.00024897,2]
[321672179,1712369438210,-207.0,0.00024897,2]
[321672180,1712369438220,-214.0,0.00024897,2]
[321672181,1712369438229,-7500.0,0.00024898,2]
[321672182,1712369438239,-447.15390421,0.00024899,2]
[321672183,1712369438249,-515.46474814,0.00024899,2]
[321672184,1712369438258,-500.74872669,0.00024899,2]
[321672185,1712369438268,-515.97477211,0.00024899,2]
[321672186,1712369438278,-503.75911156,0.00024899,2]
[321672187,1712369438288,-546.29346544,0.00024899,2]